fUST/lending_fUST_20250920
["ID","MTS","AMOUNT","RATE_DAILY","PERIOD"]
[386483611,1758316241643,-151.0,0.00021402,2]
[386483612,1758316241652,-151.0,0.00021402,2]
[386483613,1758316241661,-151.0,0.00021402,2]
[386483614,1758316241670,-151.0,0.00021402,2]
[386483615,1758316241679,-151.0,0.00021402,2]
[386483616,1758316241687,-151.0,0.00021402,2]
[386483617,1758316241696,-151.0,0.00021402,2]
[386483618,1758316241706,-151.0,0.00021402,2]
[386483619,1758316241716,-151.0,0.00021402,2]
[386483620,1758316241725,-151.0,0.00021402,2]
[386483621,1758316241734,-151.0,0.00021402,2]
[386483622,1758316241743,-151.0,0.00021402,2]
[386483623,1758316241752,-151.0,0.00021402,2]
[386483624,1758316241761,-250.804762,0.00021402,2]
[386483625,1758316241770,-277.148617,0.00021402,2]
[386483626,1758316241779,-480.0,0.00021402,2]
[386483627,1758316241788,-151.0,0.00021402,2]
[386483628,1758316241797,-151.0,0.00021402,2]
[386483629,1758316241806,-151.0,0.00021402,2]
[386483630,1758316241815,-151.0,0.00021402,2]
[386483631,1758316241824,-151.0,0.00021402,2]
[386483632,1758316241833,-151.0,0.00021402,2]
[386483633,1758316241842,-282.845309,0.00021402,2]
[386483634,1758316241851,-282.845309,0.00021402,2]
[386483635,1758316241860,-151.0,0.00021402,2]
[386483636,1758316241869,-282.845309,0.00021402,2]
[386483637,1758316241878,-301.029381,0.00021402,2]
[386483638,1758316241887,-282.845309,0.00021402,2]
[386483639,1758316241896,-151.0,0.00021402,2]
[386483640,1758316241906,-380.342655,0.00021402,2]
[386483641,1758316241915,-380.342655,0.00021402,2]
[386483642,1758316241924,-380.342655,0.00021402,2]
[386483643,1758316241933,-380.342655,0.00021402,2]
[386483644,1758316241942,-151.0,0.00021402,2]
[386483645,1758316241951,-151.0,0.00021402,2]
[386483646,1758316241960,-151.0,0.00021404,2]
[386483647,1758316241970,-151.0,0.00021404,2]
[386483648,1758316241979,-194.43326,0.00021404,2]
[386483649,1758316241988,-500.0,0.00021404,2]
[386483650,1758316241997,-192.367043,0.000215,2]
[386483651,1758316242006,-151.0,0.000215,2]
[386483652,1758316242015,-269.367818,0.000215,2]
[386483653,1758316242024,-282.845309,0.000215,2]
[386483654,1758316242033,-282.845309,0.000215,2]
[386483655,1758316242042,-151.0,0.000215,2]
[386483656,1758316242051,-282.845309,0.000215,2]
[386483657,1758316242060,-282.845309,0.000215,2]
[386483658,1758316242069,-151.0,0.000215,2]
[386483659,1758316242078,-380.342655,0.000215,2]
[386483660,1758316242087,-380.342655,0.000215,2]
[386483661,1758316242096,-380.342655,0.000215,2]
[386483662,1758316242105,-380.342655,0.000215,2]
[386483663,1758316242114,-151.0,0.000215,2]
[386483664,1758316242123,-151.0,0.000215,2]
[386483665,1758316242131,-933.280462,0.000215,2]
[386483666,1758316242140,-933.280462,0.000215,2]
[386483667,1758316242149,-933.280462,0.000215,2]
[386483668,1758316242158,-933.280462,0.000215,2]
[386483669,1758316242167,-151.0,0.000215,2]
[386483670,1758316242176,-176.09662,0.000215,2]
[386483671,1758316242185,-500.0,0.000216,2]
[386483672,1758316242194,-500.0,0.000216,2]
[386483673,1758316242203,-500.0,0.000216,2]
[386483674,1758316242212,-500.0,0.000216,2]
[386483675,1758316242222,-500.0,0.000216,2]
[386483676,1758316242230,-151.0,0.000216,2]
[386483677,1758316242239,-151.0,0.000216,2]
[386483678,1758316242248,-151.0,0.000216,2]
[386483679,1758316242256,-274.931285,0.000216,2]
[386483680,1758316242265,-151.0,0.000216,2]
[386483681,1758316242274,-151.0,0.000216,2]
[386483682,1758316242284,-282.81867945,0.000216,2]
[386483683,1758316242293,-151.0,0.000216,2]
[386483684,1758316242302,-151.0,0.000216,2]
[386483686,1758316242311,-151.0,0.000216,2]
[386483688,1758316242324,-151.0,0.000216,2]
[386483690,1758316242333,-151.0,0.000216,2]
[386483691,1758316242343,-162.042622,0.000216,2]
[386483692,1758316242352,-151.0,0.000216,2]
[386483695,1758316242362,-151.0,0.000216,2]
[386483696,1758316242371,-151.0,0.000216,2]
[386483697,1758316242380,-151.0,0.000216,2]
[386483699,1758316242390,-480.0,0.0002167,2]
[386483700,1758316242399,-480.0,0.0002167,2]
[386483702,1758316242408,-480.0,0.0002167,2]
[386483705,1758316242417,-480.0,0.0002167,2]
[386483708,1758316242426,-480.0,0.0002167,2]
[386483711,1758316242436,-480.0,0.0002167,2]
[386483714,1758316242446,-522.31,0.0002167,2]
[386483717,1758316242454,-480.0,0.0002167,2]
[386483720,1758316242463,-151.0,0.00021671,2]
[386483722,1758316242473,-480.0,0.00021671,2]
[386483724,1758316242482,-151.0,0.00021671,2]
[386483726,1758316242493,-151.0,0.00021671,2]
[386483728,1758316242503,-282.845309,0.00021671,2]
[386483730,1758316242513,-282.845309,0.00021671,2]
[386483750,1758316242621,-151.0,0.00021671,2]
[386483752,1758316242631,-282.845309,0.00021671,2]
[386483754,1758316242640,-282.8453139,0.00021671,2]
[386483756,1758316242650,-480.0,0.00021671,2]
[386483758,1758316242661,-480.0,0.00021671,2]
[386483760,1758316242670,-380.342655,0.00021671,2]
[386483762,1758316242679,-380.342655,0.00021671,2]
[386483764,1758316242687,-380.342655,0.00021671,2]
[386483766,1758316242697,-380.342651,0.00021671,2]
[386483768,1758316242705,-480.0,0.00021671,2]
[386483770,1758316242715,-151.0,0.00021671,2]
[386483772,1758316242725,-151.0,0.00021671,2]
[386483773,1758316242736,-933.280462,0.00021671,2]
[386483775,1758316242747,-933.280462,0.00021671,2]
[386483777,1758316242756,-933.280462,0.00021671,2]
[386483779,1758316242766,-933.280454,0.00021671,2]
[386483781,1758316242775,-151.0,0.00021671,2]
[386483783,1758316242784,-480.0,0.00021671,2]
[386483785,1758316242794,-500.0,0.00021671,2]
[386483787,1758316242803,-480.0,0.00021671,2]
[386483789,1758316242813,-151.0,0.00021672,2]
[386483791,1758316242822,-151.0,0.00021672,2]
[386483793,1758316242832,-151.0,0.00021672,2]
[386483795,1758316242841,-151.0,0.00021672,2]
[386483797,1758316242851,-151.0,0.00021672,2]
[386483799,1758316242860,-151.0,0.00021672,2]
[386483801,1758316242869,-480.0,0.00021672,2]
[386483803,1758316242878,-480.0,0.00021672,2]
[386483805,1758316242888,-289.048131,0.00021672,2]
[386483807,1758316242897,-480.0,0.00021672,2]
[386483809,1758316242906,-151.377466,0.00021673,2]
[386483811,1758316242915,-151.0,0.00021673,2]
[386483813,1758316242924,-151.0,0.00021673,2]
[386483815,1758316242933,-1127.94,0.00021673,2]
[386483817,1758316242944,-480.0,0.00021673,2]
[386483819,1758316242954,-728.16,0.00021675,2]
[386483821,1758316242964,-2264.58,0.00021675,2]
[386483823,1758316242974,-151.0,0.00021675,2]
[386483825,1758316242984,-480.0,0.00021675,2]
[386483827,1758316242993,-500.0,0.00021675,2]
[386483829,1758316243003,-151.0,0.00021676,2]
[386483831,1758316243014,-151.0,0.00021676,2]
[386483833,1758316243024,-151.0,0.00021676,2]
[386483835,1758316243034,-151.0,0.00021676,2]
[386483837,1758316243044,-151.0,0.00021676,2]
[386483839,1758316243053,-480.0,0.00021676,2]
[386483841,1758316243063,-500.0,0.00021678,2]
[386483843,1758316243072,-1224.8344917,0.00021753,2]
[386483845,1758316243082,-613.26,0.00021837,3]
[386483847,1758316243091,-500.0,0.00021846,2]
[386483849,1758316243100,-500.0,0.00021846,2]
[386483851,1758316243109,-600.96,0.00021846,2]
[386483853,1758316243119,-488.95487891,0.00021847,2]
[386483855,1758316243128,-151.0,0.00021847,2]
[386483857,1758316243137,-151.0,0.00021847,2]
[386483859,1758316243147,-87940.16925222,0.00021847,2]
[386483861,1758316243156,-2575.56843981,0.00021853,2]
[386483863,1758316243165,-500.0,0.00021873,2]
[386483865,1758316243175,-500.0,0.00021873,2]
[386483867,1758316243184,-500.65319894,0.00021873,2]
[386483869,1758316243194,-164.64775599,0.00021873,2]
[386483871,1758316243203,-500.0,0.00021873,2]
[386483873,1758316243212,-500.0,0.00021873,2]
[386483875,1758316243222,-500.0,0.00021873,2]
[386483877,1758316243231,-487.68368166,0.0002189,2]
[386483879,1758316243241,-480.0,0.00021944,2]
[386483881,1758316243251,-480.0,0.00021944,2]
[386483883,1758316243260,-480.0,0.00021944,2]
[386483885,1758316243269,-480.0,0.00021944,2]
[386483887,1758316243278,-480.0,0.00021944,2]
[386483889,1758316243287,-375.59,0.00021944,2]
[386483891,1758316243296,-522.31,0.00021944,2]
[386483893,1758316243305,-480.0,0.00021944,2]
[386483895,1758316243314,-480.0,0.00021945,2]
[386483896,1758316243324,-480.0,0.00021945,2]
[386483898,1758316243333,-480.0,0.00021945,2]
[386483900,1758316243343,-480.0,0.00021945,2]
[386483903,1758316243352,-480.0,0.00021945,2]
[386483904,1758316243362,-480.0,0.00021945,2]
[386483906,1758316243372,-401.88,0.00021946,2]
[386483908,1758316243382,-480.0,0.00021946,2]
[386483910,1758316243391,-480.0,0.00021946,2]
[386483912,1758316243400,-1127.94,0.00021947,2]
[386483914,1758316243409,-480.0,0.00021947,2]
[386483916,1758316243418,-728.16,0.00021949,2]
[386483918,1758316243427,-2264.58,0.00021949,2]
[386483920,1758316243436,-480.0,0.00021949,2]
[386483922,1758316243445,-480.0,0.0002195,2]
[386483924,1758316243455,-500.0,0.00021952,2]
[386483926,1758316243464,-310.0,0.0002198,2]
[386483928,1758316243474,-241.42245955,0.00022,2]
[386483930,1758316243483,-480.0,0.00022218,2]
[386483932,1758316243494,-480.0,0.00022218,2]
[386483934,1758316243503,-480.0,0.00022218,2]
[386483936,1758316243513,-480.0,0.00022218,2]
[386483938,1758316243522,-618.11294586,0.00022218,2]
[386483940,1758316243532,-522.31,0.00022218,2]
[386483942,1758316243541,-480.0,0.00022218,2]
[386483943,1758316243551,-480.0,0.00022219,2]
[386483945,1758316243560,-480.0,0.00022219,2]
[386483947,1758316243570,-480.0,0.00022219,2]
[386483949,1758316243579,-177.51,0.00022219,2]
[386483951,1758316243589,-480.0,0.00022219,2]
[386483953,1758316243600,-480.0,0.00022219,2]
[386483956,1758316243610,-480.0,0.0002222,2]
[386483957,1758316243620,-480.0,0.0002222,2]
[386483959,1758316243630,-1127.94,0.00022221,2]
[386483961,1758316243639,-480.0,0.00022221,2]
[386483963,1758316243648,-728.16,0.00022223,2]
[386483965,1758316243657,-2264.58,0.00022223,2]
[386483967,1758316243666,-480.0,0.00022223,2]
[386483969,1758316243675,-480.0,0.00022224,2]
[386483971,1758316243685,-500.0,0.00022226,2]
[386483973,1758316243694,-151.0,0.00022251,3]
[386483975,1758316243703,-151.0,0.00022251,3]
[386483977,1758316243713,-151.0,0.00022251,3]
[386483979,1758316243723,-151.0,0.00022251,3]
[386483981,1758316243733,-151.0,0.00022251,3]
[386483983,1758316243743,-151.0,0.00022251,3]
[386483985,1758316243754,-151.0,0.00022251,3]
[386483987,1758316243763,-151.0,0.00022251,3]
[386483989,1758316243773,-151.0,0.00022251,3]
[386483991,1758316243783,-151.0,0.00022251,3]
[386483993,1758316243791,-151.0,0.00022251,3]
[386483995,1758316243801,-151.0,0.00022251,3]
[386483997,1758316243812,-151.0,0.00022251,3]
[386483999,1758316243822,-151.0,0.00022251,3]
[386484001,1758316243831,-151.0,0.00022251,3]
[386484003,1758316243842,-151.0,0.00022251,3]
[386484005,1758316243852,-151.0,0.00022251,3]
[386484007,1758316243861,-151.0,0.00022251,3]
[386484009,1758316243879,-151.0,0.00022251,3]
[386484011,1758316243888,-151.0,0.00022251,3]
[386484013,1758316243898,-151.0,0.00022251,3]
[386484015,1758316243907,-151.0,0.00022251,3]
[386484017,1758316243917,-151.0,0.00022251,3]
[386484019,1758316243926,-151.0,0.00022251,3]
[386484021,1758316243935,-151.0,0.00022251,3]
[386484022,1758316243944,-151.0,0.00022251,3]
[386484024,1758316243954,-151.0,0.00022251,3]
[386484026,1758316243964,-151.0,0.00022251,3]
[386484028,1758316243974,-151.0,0.00022251,3]
[386484030,1758316243983,-151.0,0.00022251,3]
[386484032,1758316243993,-105.64587048,0.00022251,3]
[386484068,1758316244337,-1000.0,0.000215,2]
[386484070,1758316244347,-45.35412952,0.00022251,3]
[386484072,1758316244357,-151.0,0.00022251,3]
[386484074,1758316244367,-151.0,0.00022251,3]
[386484076,1758316244377,-151.0,0.00022251,3]
[386484078,1758316244387,-151.0,0.00022251,3]
[386484080,1758316244398,-151.0,0.00022251,3]
[386484082,1758316244407,-151.0,0.00022251,3]
[386484084,1758316244418,-105.02405039,0.00022251,3]
[386484086,1758316244430,-45.97594961,0.00022251,3]
[386484088,1758316244439,-151.0,0.00022251,3]
[386484090,1758316244448,-151.0,0.00022251,3]
[386484092,1758316244458,-151.0,0.00022251,3]
[386484094,1758316244469,-151.0,0.00022251,3]
[386484096,1758316244479,-151.0,0.00022251,3]
[386484098,1758316244489,-151.0,0.00022251,3]
[386484100,1758316244499,-151.0,0.00022251,3]
[386484102,1758316244509,-151.0,0.00022251,3]
[386484104,1758316244519,-151.0,0.00022251,3]
[386484106,1758316244528,-151.0,0.00022251,3]
[386484108,1758316244539,-174.23063065,0.00022251,3]
[386484110,1758316244548,-4504.6,0.000223,7]
[386484112,1758316244558,-500.0,0.00022421,2]
[386484114,1758316244568,-1000.0,0.00022421,2]
[386484116,1758316244577,-1000.0,0.00022421,2]
[386484118,1758316244587,-510.51901283,0.00022421,2]
[386484120,1758316244596,-480.0,0.00022492,2]
[386484122,1758316244606,-480.0,0.00022492,2]
[386484124,1758316244615,-480.0,0.00022492,2]
[386484126,1758316244624,-480.0,0.00022492,2]
[386484127,1758316244634,-522.31,0.00022492,2]
[386484129,1758316244643,-480.0,0.00022492,2]
[386484131,1758316244653,-480.0,0.00022493,2]
[386484133,1758316244663,-392.383752,0.00022493,2]
[386484135,1758316244672,-480.0,0.00022493,2]
[386484137,1758316244683,-480.0,0.00022493,2]
[386484139,1758316244693,-480.0,0.00022493,2]
[386484141,1758316244702,-480.0,0.00022494,2]
[386484143,1758316244712,-480.0,0.00022494,2]
[386484145,1758316244722,-1127.94,0.00022495,2]
[386484146,1758316244731,-480.0,0.00022495,2]
[386484147,1758316244741,-728.16,0.00022497,2]
[386484148,1758316244750,-2264.58,0.00022497,2]
[386484149,1758316244759,-480.0,0.00022497,2]
[386484150,1758316244768,-480.0,0.00022498,2]
[386484151,1758316244777,-500.0,0.000225,2]
[386484153,1758316244786,-223.17499391,0.00022737,2]
[386484154,1758316244795,-480.0,0.00022766,2]
[386484157,1758316244805,-480.0,0.00022766,2]
[386484158,1758316244815,-480.0,0.00022766,2]
[386484161,1758316244824,-480.0,0.00022766,2]
[386484162,1758316244835,-522.31,0.00022766,2]
[386484164,1758316244845,-371.53,0.00022766,2]
[386484166,1758316244855,-219.4,0.00022767,2]
[386484168,1758316244865,-480.0,0.00022767,2]
[386484170,1758316244876,-480.0,0.00022767,2]
[386484173,1758316244885,-480.0,0.00022767,2]
[386484174,1758316244896,-480.0,0.00022768,2]
[386484176,1758316244906,-480.0,0.00022768,2]
[386484178,1758316244915,-1127.94,0.00022769,2]
[386484180,1758316244925,-218.93,0.00022769,2]
[386484183,1758316244934,-182.56903647,0.00022771,2]
[386484246,1758316245992,-372.9242503,0.00022771,2]
[386484248,1758316246004,-172.66671323,0.00022771,2]
[386484250,1758316246014,-2264.58,0.00022771,2]
[386484252,1758316246023,-480.0,0.00022771,2]
[386484254,1758316246033,-353.39,0.00022772,2]
[386484256,1758316246042,-500.0,0.00022774,2]
[386484258,1758316246052,-500.0,0.00022968,2]
[386484260,1758316246061,-1285.67800958,0.00022968,2]
[386484262,1758316246072,-260.7508893,0.00022968,2]
[386484264,1758316246082,-420.0,0.00022972,2]
[386484266,1758316246091,-248.91254877,0.00022997,2]
[386484268,1758316246103,-498.04576734,0.00022997,2]
[386484270,1758316246112,-160.0,0.00023,2]
[386484272,1758316246121,-848.13460282,0.00023,2]
[386484274,1758316246131,-233.43972884,0.00023,2]
[386484276,1758316246140,-160.0,0.00023,2]
[386484279,1758316246165,-160.0,0.00023,2]
[386484281,1758316246174,-217.99592756,0.00023,2]
[386484283,1758316246184,-160.0,0.00023,2]
[386484284,1758316246193,-160.0,0.00023,2]
[386484286,1758316246203,-480.0,0.0002304,2]
[386484287,1758316246212,-480.0,0.0002304,2]
[386484289,1758316246223,-480.0,0.0002304,2]
[386484301,1758316246326,-480.0,0.0002304,2]
[386484303,1758316246338,-522.31,0.0002304,2]
[386484306,1758316246348,-480.0,0.00023041,2]
[386484308,1758316246357,-480.0,0.00023041,2]
[386484309,1758316246366,-183.95892485,0.00023041,2]
[386484310,1758316246376,-480.0,0.00023042,2]
[386484311,1758316246385,-480.0,0.00023042,2]
[386484312,1758316246395,-1127.94,0.00023043,2]
[386484313,1758316246404,-728.16,0.00023045,2]
[386484314,1758316246413,-452.28220631,0.00023045,2]
[386484448,1758317316572,1950.40752526,0.000212,30]
[386484453,1758317363141,-225.13,0.00021113,3]
[386484454,1758317363165,-245.27,0.00021113,3]
[386484457,1758317418837,1080.85445426,0.00021023,2]
[386484479,1758317432047,-430.12,0.00021113,3]
[386484481,1758317432057,-1200.0,0.00021115,2]
[386484482,1758317432067,-1200.0,0.00021116,2]
[386484484,1758317432076,-300.0,0.00021116,2]
[386484486,1758317432085,-300.0,0.00021116,2]
[386484488,1758317432095,-300.0,0.00021116,2]
[386484490,1758317432104,-14854.54671356,0.00021117,2]
[386484491,1758317432113,-480.0,0.00021117,2]
[386484493,1758317432123,-480.0,0.00021117,2]
[386484495,1758317432132,-480.0,0.00021117,2]
[386484497,1758317432141,-480.0,0.00021117,2]
[386484499,1758317432151,-480.0,0.00021117,2]
[386484500,1758317432160,-480.0,0.00021117,2]
[386484502,1758317432169,-480.0,0.00021117,2]
[386484504,1758317432179,-480.0,0.00021117,2]
[386484506,1758317432188,-480.0,0.00021117,2]
[386484510,1758317432197,-480.0,0.00021117,2]
[386484513,1758317432206,-480.0,0.00021117,2]
[386484514,1758317432215,-480.0,0.00021117,2]
[386484516,1758317432225,-480.0,0.00021117,2]
[386484518,1758317432235,-480.0,0.00021117,2]
[386484520,1758317432244,-480.0,0.00021118,2]
[386484522,1758317432254,-480.0,0.00021118,2]
[386484523,1758317432263,-819.48,0.00021118,2]
[386484525,1758317432272,-224.00067146,0.00021118,2]
[386484527,1758317432281,-480.0,0.00021119,2]
[386484528,1758317432290,-581.94,0.00021119,2]
[386484529,1758317432300,-480.0,0.00021119,2]
[386484530,1758317432309,-480.0,0.00021119,2]
[386484532,1758317432318,-480.0,0.00021119,2]
[386484533,1758317432327,-480.0,0.00021119,2]
[386484535,1758317432336,-480.0,0.00021119,2]
[386484537,1758317432345,-480.0,0.00021119,2]
[386484539,1758317432355,-480.0,0.00021119,2]
[386484541,1758317432364,-192.40365448,0.00021119,2]
[386484542,1758317432373,-480.0,0.00021119,2]
[386484544,1758317432382,-480.0,0.00021119,2]
[386484546,1758317432391,-480.0,0.00021119,2]
[386484548,1758317432401,-480.0,0.00021119,2]
[386484550,1758317432410,-480.0,0.00021119,2]
[386484551,1758317432420,-480.0,0.00021119,2]
[386484553,1758317432429,-480.0,0.00021119,2]
[386484555,1758317432438,-480.0,0.00021119,2]
[386484556,1758317432451,-480.0,0.00021119,2]
[386484558,1758317432462,-480.0,0.00021119,2]
[386484560,1758317432471,-480.0,0.00021119,2]
[386484562,1758317432480,-480.0,0.00021119,2]
[386484564,1758317432490,-480.0,0.00021119,2]
[386484566,1758317432500,-480.0,0.00021119,2]
[386484568,1758317432509,-480.0,0.00021119,2]
[386484569,1758317432520,-480.0,0.00021119,2]
[386484571,1758317432531,-498.89600899,0.00021119,2]
[386484573,1758317432540,-480.0,0.0002112,2]
[386484575,1758317432549,-480.0,0.0002112,2]
[386484576,1758317432558,-480.0,0.0002112,2]
[386484578,1758317432567,-480.0,0.0002112,2]
[386484580,1758317432577,-480.0,0.0002112,2]
[386484582,1758317432587,-480.0,0.0002112,2]
[386484583,1758317432596,-480.0,0.0002112,2]
[386484585,1758317432607,-480.0,0.0002112,2]
[386484587,1758317432617,-480.0,0.0002112,2]
[386484589,1758317432627,-480.0,0.0002112,2]
[386484590,1758317432636,-358.1048033,0.0002112,2]
[386484592,1758317432645,-480.0,0.0002112,2]
[386484594,1758317432654,-480.0,0.0002112,2]
[386484596,1758317432664,-483.24766933,0.0002112,2]
[386484598,1758317432674,-480.0,0.0002112,2]
[386484600,1758317432683,-480.0,0.0002112,2]
[386484602,1758317432693,-480.0,0.0002112,2]
[386484603,1758317432703,-480.0,0.0002112,2]
[386484605,1758317432713,-480.0,0.0002112,2]
[386484606,1758317432723,-481.81738092,0.0002112,2]
[386484607,1758317432732,-480.0,0.0002112,2]
[386484608,1758317432741,-480.0,0.0002112,2]
[386484609,1758317432751,-480.0,0.0002112,2]
[386484610,1758317432761,-480.0,0.0002112,2]
[386484611,1758317432771,-480.0,0.0002112,2]
[386484612,1758317432781,-480.0,0.0002112,2]
[386484613,1758317432791,-480.0,0.0002112,2]
[386484614,1758317432800,-480.0,0.0002112,2]
[386484615,1758317432810,-480.0,0.0002112,2]
[386484616,1758317432820,-480.0,0.0002112,2]
[386484617,1758317432829,-480.0,0.0002112,2]
[386484618,1758317432839,-480.0,0.0002112,2]
[386484619,1758317432848,-480.0,0.0002112,2]
[386484620,1758317432857,-480.0,0.0002112,2]
[386484621,1758317432867,-480.0,0.0002112,2]
[386484622,1758317432876,-480.0,0.0002112,2]
[386484624,1758317432885,-480.0,0.0002112,2]
[386484626,1758317432895,-480.0,0.0002112,2]
[386484627,1758317432904,-480.0,0.0002112,2]
[386484629,1758317432913,-480.0,0.0002112,2]
[386484631,1758317432923,-480.0,0.0002112,2]
[386484633,1758317432933,-480.0,0.0002112,2]
[386484635,1758317432942,-480.0,0.0002112,2]
[386484636,1758317432951,-480.0,0.0002112,2]
[386484637,1758317432960,-480.0,0.0002112,2]
[386484638,1758317432969,-480.0,0.0002112,2]
[386484639,1758317432979,-480.0,0.0002112,2]
[386484640,1758317432988,-480.0,0.0002112,2]
[386484641,1758317432997,-480.0,0.0002112,2]
[386484642,1758317433007,-480.0,0.0002112,2]
[386484643,1758317433017,-480.0,0.0002112,2]
[386484644,1758317433026,-480.0,0.0002112,2]
[386484645,1758317433036,-480.0,0.0002112,2]
[386484646,1758317433046,-480.0,0.0002112,2]
[386484647,1758317433055,-480.0,0.0002112,2]
[386484648,1758317433065,-480.0,0.0002112,2]
[386484649,1758317433075,-480.0,0.0002112,2]
[386484650,1758317433085,-480.0,0.0002112,2]
[386484651,1758317433095,-480.0,0.0002112,2]
[386484652,1758317433104,-480.0,0.0002112,2]
[386484653,1758317433114,-480.0,0.0002112,2]
[386484654,1758317433123,-480.0,0.0002112,2]
[386484655,1758317433133,-480.0,0.0002112,2]
[386484656,1758317433143,-480.0,0.0002112,2]
[386484657,1758317433152,-480.0,0.0002112,2]
[386484658,1758317433161,-480.0,0.0002112,2]
[386484659,1758317433170,-480.0,0.0002112,2]
[386484660,1758317433180,-480.0,0.0002112,2]
[386484661,1758317433189,-480.0,0.0002112,2]
[386484662,1758317433199,-158.0467849,0.0002112,2]
[386484663,1758317433208,-480.0,0.0002112,2]
[386484664,1758317433217,-482.09733844,0.0002112,2]
[386484665,1758317433226,-480.0,0.0002112,2]
[386484666,1758317433236,-134.79093806,0.0002112,2]
[386484667,1758317433250,-345.20906194,0.0002112,2]
[386484668,1758317433259,-199.97121973,0.0002112,2]
[386484669,1758317433270,-277.94464223,0.0002112,2]
[386484670,1758317433282,-2.08413804,0.0002112,2]
[386484671,1758317433291,-480.0,0.0002112,2]
[386484672,1758317433300,-480.0,0.0002112,2]
[386484673,1758317433310,-158.11586196,0.0002112,2]
[386484693,1758317438028,-500.0,0.00021116,2]
[386484695,1758317438038,-500.0,0.00021116,2]
[386484696,1758317438047,-500.0,0.00021116,2]
[386484698,1758317438057,-500.0,0.00021116,2]
[386484700,1758317438066,-466.94756915,0.00021116,2]
[386484702,1758317438076,-500.0,0.00021116,2]
[386484704,1758317438085,-500.0,0.00021116,2]
[386484705,1758317438094,-310.51308399,0.00021116,2]
[386484707,1758317438103,-350.66897417,0.00021116,2]
[386484710,1758317438119,-149.33102583,0.00021116,2]
[386484712,1758317438128,-500.0,0.00021116,2]
[386484713,1758317438138,-500.0,0.00021116,2]
[386484715,1758317438147,-231.4501622,0.00021116,2]
[386484718,1758317438156,-500.0,0.00021116,2]
[386484720,1758317438166,-607.63723551,0.00021116,2]
[386484722,1758317438176,-480.0,0.00021119,2]
[386484724,1758317438185,-321.88413804,0.0002112,2]
[386484726,1758317438194,-480.0,0.0002112,2]
[386484728,1758317438203,-480.0,0.0002112,2]
[386484729,1758317438212,-43.87665164,0.0002112,2]
[386484731,1758317438223,-436.12334836,0.0002112,2]
[386484733,1758317438233,-463.76320624,0.0002112,2]
[386484735,1758317438244,-16.23679376,0.0002112,2]
[386484737,1758317438254,-480.0,0.0002112,2]
[386484739,1758317438263,-480.0,0.0002112,2]
[386484750,1758317438381,-323.6677395,0.0002112,2]
[386484751,1758317438391,-480.0,0.0002112,2]
[386484752,1758317438400,-480.0,0.0002112,2]